fUSD/lending_fUSD_20260621
["ID","MTS","AMOUNT","RATE_DAILY","PERIOD"]
[425857268,1782006849000,-174.0,0.00015,2]
[425857269,1782006866000,-174.0,0.00015,2]
[425857270,1782006885000,-934.0,0.0001499,2]
[425857273,1782006887000,2318.45599597,8e-05,2]
[425857274,1782006965000,263.39855783,0.000101,2]
[425857278,1782007061000,15047.93838717,0.0001,2]
[425857287,1782007478000,-174.0,0.0001405,2]
[425857304,1782007832000,-9547.32091648,0.0001399,2]
[425857301,1782007832000,-174.15358835,0.00013989,2]
[425857305,1782007832000,-300.0,0.00013995,2]
[425857302,1782007832000,-243.7898852,0.00013989,2]
[425857303,1782007832000,-291.1478009,0.00013989,2]
[425857299,1782007832000,-9.59028515,0.00013979,2]
[425857300,1782007832000,-503.10118996,0.00013979,2]
[425857296,1782007832000,-283.6,0.00013973,2]
[425857297,1782007832000,-203.30471485,0.00013979,2]
[425857293,1782007832000,-379.876,0.00013861,2]
[425857295,1782007832000,-16.4,0.00013973,2]
[425857294,1782007832000,-150.0,0.00013968,2]
[425857291,1782007832000,-300.0,0.00013861,2]
[425857292,1782007832000,-320.124,0.00013861,2]
[425857306,1782007832000,-305.60160948,0.00013995,2]
[425857298,1782007832000,-387.105,0.00013979,2]
[425857307,1782007832000,-728.023979,0.00014,2]
[425857312,1782007832000,-502.71171251,0.00014094,2]
[425857310,1782007832000,-2.69,0.0001405,2]
[425857308,1782007832000,-318.8340395,0.00014048,2]
[425857332,1782007832000,-4065.29878446,0.0001489,2]
[425857333,1782007832000,-1053.71656762,0.0001489,2]
[425857328,1782007832000,-66338.62448844,0.0001489,2]
[425857331,1782007832000,-585.68234826,0.0001489,2]
[425857325,1782007832000,-300.0,0.000148,5]
[425857327,1782007832000,-273.34622617,0.0001488,2]
[425857326,1782007832000,-751.39451437,0.00014865,2]
[425857330,1782007832000,-9882.26559464,0.0001489,2]
[425857323,1782007832000,-285.01,0.00014763,2]
[425857324,1782007832000,-176.69,0.00014789,2]
[425857316,1782007832000,-150.0,0.00014226,2]
[425857320,1782007832000,-176.69,0.00014419,2]
[425857318,1782007832000,-285.01,0.00014403,2]
[425857314,1782007832000,-600.0,0.00014138,2]
[425857322,1782007832000,-182.23,0.000145,2]
[425857364,1782007838000,-500.0,0.00014895,2]
[425857363,1782007838000,-500.0,0.00014895,2]
[425857362,1782007838000,-500.0,0.00014895,2]
[425857365,1782007838000,-500.0,0.00014895,2]
[425857366,1782007838000,-500.0,0.00014895,2]
[425857369,1782007838000,-321.0,0.00014898,2]
[425857367,1782007838000,-189.80159833,0.00014895,2]
[425857368,1782007838000,-500.0,0.00014895,2]
[425857371,1782007838000,-311.0,0.00014898,2]
[425857361,1782007838000,-500.0,0.00014895,2]
[425857372,1782007838000,-311.0,0.00014898,2]
[425857358,1782007838000,-500.0,0.00014895,2]
[425857350,1782007838000,-500.0,0.00014895,2]
[425857360,1782007838000,-500.0,0.00014895,2]
[425857357,1782007838000,-500.0,0.00014895,2]
[425857356,1782007838000,-500.0,0.00014895,2]
[425857355,1782007838000,-500.0,0.00014895,2]
[425857354,1782007838000,-500.0,0.00014895,2]
[425857353,1782007838000,-500.0,0.00014895,2]
[425857352,1782007838000,-500.0,0.00014895,2]
[425857349,1782007838000,-150.0,0.00014894,2]
[425857351,1782007838000,-500.0,0.00014895,2]
[425857348,1782007838000,-1761780.57191658,0.0001489,2]
[425857370,1782007838000,-150.0,0.00014898,2]
[425857359,1782007838000,-500.0,0.00014895,2]
[425857374,1782007838000,-152.0,0.00014898,2]
[425857379,1782007838000,-151.0,0.00014898,2]
[425857375,1782007838000,-286.0,0.00014898,2]
[425857376,1782007838000,-151.0,0.00014898,2]
[425857395,1782007838000,-188.5013597,0.00014973,2]
[425857400,1782007838000,-500.0,0.00014999,2]
[425857399,1782007838000,-500.0,0.00014999,2]
[425857398,1782007838000,-500.0,0.00014999,2]
[425857396,1782007838000,-216.28381402,0.00014996,2]
[425857397,1782007838000,-500.0,0.00014999,2]
[425857393,1782007838000,-168.82107467,0.000149,2]
[425857392,1782007838000,-2008.69522886,0.000149,2]
[425857391,1782007838000,-600.0,0.000149,5]
[425857390,1782007838000,-211.83303482,0.000149,2]
[425857389,1782007838000,-156.3101853,0.000149,2]
[425857394,1782007838000,-610.301,0.00014973,2]
[425857388,1782007838000,-2151.99193145,0.000149,2]
[425857387,1782007838000,-657.34039963,0.000149,2]
[425857385,1782007838000,-312.0,0.000149,2]
[425857383,1782007838000,-151.0,0.00014899,2]
[425857384,1782007838000,-500.0,0.00014899,2]
[425857382,1782007838000,-151.0,0.00014899,2]
[425857380,1782007838000,-314.0,0.00014898,2]
[425857381,1782007838000,-151.0,0.00014898,2]
[425857378,1782007838000,-152.0,0.00014898,2]
[425857373,1782007838000,-315.0,0.00014898,2]
[425857386,1782007838000,-318.0,0.000149,2]
[425857377,1782007838000,-151.0,0.00014898,2]
[425857465,1782007839000,-176.69,0.00015529,2]
[425857461,1782007839000,-500.0,0.00015455,2]
[425857459,1782007839000,-600.0,0.00015455,2]
[425857457,1782007839000,-300.0,0.00015365,2]
[425857447,1782007839000,-300.0,0.00015365,2]
[425857451,1782007839000,-193.47104777,0.00015365,2]
[425857445,1782007839000,-500.0,0.00015365,2]
[425857439,1782007839000,-257.51,0.00015283,2]
[425857449,1782007839000,-207.14622756,0.00015365,2]
[425857467,1782007839000,-285.01,0.00015844,2]
[425857455,1782007839000,-265.15227808,0.00015365,2]
[425857474,1782007839000,-255.0,0.00016026,2]
[425857489,1782007839000,-500.0,0.00016438,2]
[425857476,1782007839000,-154.16,0.0001629,2]
[425857478,1782007839000,-500.0,0.00016438,2]
[425857469,1782007839000,-6260.0937,0.00015973,2]
[425857471,1782007839000,-314.99857486,0.00016,2]
[425857482,1782007839000,-500.0,0.00016438,2]
[425857479,1782007839000,-500.0,0.00016438,2]
[425857484,1782007839000,-500.0,0.00016438,2]
[425857485,1782007839000,-500.0,0.00016438,2]
[425857486,1782007839000,-500.0,0.00016438,2]
[425857487,1782007839000,-500.0,0.00016438,2]
[425857491,1782007839000,-500.0,0.00016438,2]
[425857495,1782007839000,-500.0,0.00016438,2]
[425857463,1782007839000,-285.01,0.00015483,2]
[425857443,1782007839000,-253.45479154,0.00015365,2]
[425857418,1782007839000,-500.0,0.00014999,2]
[425857435,1782007839000,-176.69,0.00015159,2]
[425857499,1782007839000,-500.0,0.00016438,2]
[425857401,1782007839000,-514.48278205,0.00014999,2]
[425857403,1782007839000,-500.0,0.00014999,2]
[425857404,1782007839000,-500.0,0.00014999,2]
[425857402,1782007839000,-500.0,0.00014999,2]
[425857406,1782007839000,-500.0,0.00014999,2]
[425857405,1782007839000,-500.0,0.00014999,2]
[425857407,1782007839000,-500.0,0.00014999,2]
[425857411,1782007839000,-522.55662909,0.00014999,2]
[425857408,1782007839000,-500.0,0.00014999,2]
[425857412,1782007839000,-570.61490244,0.00014999,2]
[425857409,1782007839000,-500.0,0.00014999,2]
[425857410,1782007839000,-500.0,0.00014999,2]
[425857413,1782007839000,-500.0,0.00014999,2]
[425857414,1782007839000,-500.0,0.00014999,2]
[425857416,1782007839000,-500.0,0.00014999,2]
[425857415,1782007839000,-500.0,0.00014999,2]
[425857429,1782007839000,-2500.0,0.00015027,2]
[425857417,1782007839000,-500.0,0.00014999,2]
[425857419,1782007839000,-557.03042064,0.00014999,2]
[425857431,1782007839000,-293.05716156,0.00015075,2]
[425857433,1782007839000,-285.01,0.00015123,2]
[425857427,1782007839000,-150.0,0.00015,2]
[425857421,1782007839000,-1081222.81482354,0.00015,2]
[425857425,1782007839000,-350725.77573121,0.00015,2]
[425857423,1782007839000,-8112.79712964,0.00015,2]
[425857437,1782007839000,-300.24300457,0.00015247,2]
[425857441,1782007839000,-600.0,0.00015365,2]
[425857503,1782007839000,-2008.69522886,0.00016582,2]
[425857453,1782007839000,-250.0,0.00015365,2]
[425857501,1782007839000,-500.0,0.00016438,2]
[425857567,1782007839000,-154.0,0.0002,2]
[425857578,1782007839000,-150.29868404,0.0002058,2]
[425857573,1782007839000,-154.67946025,0.0002,2]
[425857565,1782007839000,-2008.69522886,0.00019945,2]
[425857569,1782007839000,-162.0,0.0002,2]
[425857582,1782007839000,-162.0,0.00021,2]
[425857580,1782007839000,-154.0,0.00021,2]
[425857583,1782007839000,-202.0,0.00021,2]
[425857585,1782007839000,-156.31018524,0.00021387,2]
[425857587,1782007839000,-2008.69522886,0.00021627,2]
[425857590,1782007839000,-215.00239412,0.00021706,2]
[425857592,1782007839000,-2151.99193144,0.00021757,2]
[425857597,1782007839000,-151.0,0.00021948,2]
[425857599,1782007839000,-151.0,0.00021948,2]
[425857595,1782007839000,-500.0,0.00021948,2]
[425857594,1782007839000,-5000.0,0.00021918,2]
[425857598,1782007839000,-500.0,0.00021948,2]
[425857601,1782007839000,-500.0,0.00021948,2]
[425857603,1782007839000,-151.0,0.00021948,2]
[425857605,1782007839000,-500.0,0.00021948,2]
[425857618,1782007839000,-151.0,0.00021948,2]
[425857607,1782007839000,-151.0,0.00021948,2]
[425857609,1782007839000,-500.0,0.00021948,2]
[425857611,1782007839000,-151.0,0.00021948,2]
[425857612,1782007839000,-500.0,0.00021948,2]
[425857614,1782007839000,-151.0,0.00021948,2]
[425857616,1782007839000,-500.0,0.00021948,2]
[425857575,1782007839000,-512.0,0.0002,2]
[425857571,1782007839000,-202.0,0.0002,2]
[425857497,1782007839000,-468.75569264,0.00016438,2]
[425857560,1782007839000,-156.31018524,0.00019225,2]
[425857493,1782007839000,-500.0,0.00016438,2]
[425857506,1782007839000,-154.16,0.00016827,2]
[425857507,1782007839000,-1500.0,0.00017016,2]
[425857510,1782007839000,-156.31018524,0.00017062,2]
[425857514,1782007839000,-283.0,0.00017248,2]
[425857512,1782007839000,-2151.99193144,0.00017186,2]
[425857518,1782007839000,-1555.5,0.00017564,2]
[425857563,1782007839000,-2151.99193144,0.00019471,2]
[425857516,1782007839000,-154.16,0.00017365,2]
[425857525,1782007839000,-2008.69522886,0.00018264,2]
[425857522,1782007839000,-363.9140262,0.00018112,2]
[425857529,1782007839000,-781.72645441,0.000183,2]
[425857527,1782007839000,-1655.33051719,0.000183,2]
[425857520,1782007839000,-154.16,0.00017903,2]
[425857533,1782007839000,-154.16,0.00018441,2]
[425857531,1782007839000,-166.38979655,0.000183,2]
[425857557,1782007839000,-781.72645441,0.000191,2]
[425857548,1782007839000,-1655.33051719,0.000189,2]
[425857552,1782007839000,-154.16,0.00018978,2]
[425857541,1782007839000,-250.0,0.00018671,2]
[425857554,1782007839000,-1655.33051719,0.000191,2]
[425857559,1782007839000,-307.57471485,0.0001918,2]
[425857544,1782007839000,-1655.33051719,0.000187,2]
[425857537,1782007839000,-781.72645441,0.000185,2]
[425857550,1782007839000,-781.72645441,0.000189,2]
[425857546,1782007839000,-781.72645441,0.000187,2]
[425857535,1782007839000,-1655.33051719,0.000185,2]
[425857539,1782007839000,-166.38979655,0.000185,2]
[425857705,1782007840000,-315.0,0.00024619,7]
[425857708,1782007840000,-170.67,0.00024658,2]
[425857703,1782007840000,-9999.99,0.00024174,2]
[425857692,1782007840000,-202.0,0.00024,2]
[425857682,1782007840000,-6313.9536077,0.00023368,2]
[425857684,1782007840000,-156.31018524,0.00023549,2]
[425857688,1782007840000,-154.0,0.00024,2]
[425857701,1782007840000,-999.99,0.00024174,2]
[425857699,1782007840000,-9999.99,0.00024174,2]
[425857690,1782007840000,-162.0,0.00024,2]
[425857686,1782007840000,-150.0,0.00023667,2]
[425857710,1782007840000,-1000.0,0.00024658,2]
[425857738,1782007840000,-438.21,0.00025995,2]
[425857722,1782007840000,-169.0,0.00025,2]
[425857724,1782007840000,-203.0,0.00025,2]
[425857715,1782007840000,-2008.69522886,0.00024991,2]
[425857712,1782007840000,-150.0,0.000247,14]
[425857720,1782007840000,-158.0,0.00025,2]
[425857718,1782007840000,-3779.63076745,0.00025,7]
[425857726,1782007840000,-512.0,0.00025,6]
[425857728,1782007840000,-427.0,0.00025206,10]
[425857732,1782007840000,-6081.0,0.00025232,2]
[425857730,1782007840000,-3647.0,0.00025232,2]
[425857736,1782007840000,-156.31018524,0.00025711,2]
[425857734,1782007840000,-3560.0,0.00025327,2]
[425857694,1782007840000,-2151.99193144,0.00024043,2]
[425857713,1782007840000,-150.0,0.0002485,2]
[425857696,1782007840000,-150.99,0.00024174,2]
[425857651,1782007840000,-3566.944,0.00022327,2]
[425857680,1782007840000,-3686.0363923,0.00023368,2]
[425857750,1782007840000,-159.73947504,0.00026279,2]
[425857622,1782007840000,-151.0,0.00021948,2]
[425857625,1782007840000,-500.0,0.00021948,2]
[425857627,1782007840000,-151.0,0.00021948,2]
[425857628,1782007840000,-500.0,0.00021948,2]
[425857630,1782007840000,-151.0,0.00021948,2]
[425857642,1782007840000,-202.0,0.00022,2]
[425857636,1782007840000,-154.0,0.00022,2]
[425857640,1782007840000,-1157.68,0.00022,2]
[425857634,1782007840000,-151.0,0.00021948,2]
[425857632,1782007840000,-512.18979702,0.00021948,2]
[425857645,1782007840000,-150.0,0.00022,2]
[425857638,1782007840000,-162.0,0.00022,2]
[425857647,1782007840000,-3647.0,0.00022232,2]
[425857649,1782007840000,-6081.0,0.00022232,2]
[425857653,1782007840000,-384.0,0.00022327,2]
[425857655,1782007840000,-183.26511569,0.00022327,2]
[425857659,1782007840000,-512.0,0.000225,4]
[425857657,1782007840000,-186.193351,0.0002233,2]
[425857667,1782007840000,-162.0,0.00023,2]
[425857663,1782007840000,-657.34039961,0.00022742,2]
[425857661,1782007840000,-150.0,0.0002254,2]
[425857669,1782007840000,-202.0,0.00023,2]
[425857665,1782007840000,-154.0,0.00023,2]
[425857671,1782007840000,-156.31,0.00023021,2]
[425857674,1782007840000,-181.995995,0.00023097,7]
[425857676,1782007840000,-2008.69522886,0.00023309,2]
[425857678,1782007840000,-190.71,0.00023368,7]
[425857621,1782007840000,-500.0,0.00021948,2]
[425857748,1782007840000,-520.93625687,0.00026279,2]
[425857746,1782007840000,-578.20924308,0.00026279,2]
[425857810,1782007840000,-2151.99193144,0.00028614,2]
[425857817,1782007840000,-318.0,0.000287,2]
[425857821,1782007840000,-162.35451448,0.000287,2]
[425857808,1782007840000,-159.73947504,0.00028471,2]
[425857823,1782007840000,-500.0,0.000287,2]
[425857815,1782007840000,-514.78166936,0.000287,2]
[425857819,1782007840000,-310.0,0.000287,2]
[425857825,1782007840000,-166.08251047,0.00028766,2]
[425857830,1782007840000,-500.0,0.00028806,2]
[425857827,1782007840000,-156.31,0.00028777,120]
[425857832,1782007840000,-156.0,0.00028856,30]
[425857834,1782007840000,-154.0,0.00028856,30]
[425857838,1782007840000,-160.0,0.00028856,30]
[425857846,1782007840000,-152.0,0.00028856,30]
[425857840,1782007840000,-157.0,0.00028856,30]
[425857844,1782007840000,-155.0,0.00028856,30]
[425857836,1782007840000,-161.0,0.00028856,30]
[425857842,1782007840000,-162.0,0.00028856,30]
[425857848,1782007840000,-202.0,0.00028856,30]
[425857852,1782007840000,-160.0,0.00028856,30]
[425857850,1782007840000,-154.0,0.00028856,30]
[425857859,1782007840000,-6445.1867071,0.0002886,2]
[425857854,1782007840000,-500.0,0.00028859,2]
[425857857,1782007840000,-500.0,0.00028859,2]
[425857863,1782007840000,-312.6781778,0.0002886,2]
[425857861,1782007840000,-152296.4381586,0.0002886,2]
[425857741,1782007840000,-192.19,0.00026036,2]
[425857812,1782007840000,-500.0,0.000287,2]
[425857804,1782007840000,-6081.0,0.00028232,2]
[425857864,1782007840000,-160.0,0.00028863,30]
[425857802,1782007840000,-3647.0,0.00028232,2]
[425857806,1782007840000,-2008.69522886,0.00028354,2]
[425857752,1782007840000,-2151.99193144,0.00026329,2]
[425857754,1782007840000,-431.954704,0.00026408,2]
[425857758,1782007840000,-2008.69522886,0.00026672,2]
[425857756,1782007840000,-156.23,0.00026541,2]
[425857762,1782007840000,-250.0,0.00026849,8]
[425857760,1782007840000,-159.73947504,0.00026827,2]
[425857770,1782007840000,-3646.42,0.00027397,10]
[425857768,1782007840000,-166.08251047,0.00027397,2]
[425857764,1782007840000,-250.0,0.00026849,8]
[425857766,1782007840000,-159.73947504,0.00027375,2]
[425857772,1782007840000,-3038.69,0.00027397,10]
[425857774,1782007840000,-2532.24,0.00027397,10]
[425857743,1782007840000,-150.0,0.00026093,2]
[425857780,1782007840000,-512.0,0.000275,9]
[425857797,1782007840000,-188.01426254,0.000282,2]
[425857799,1782007840000,-188.01426254,0.000282,2]
[425857789,1782007840000,-159.73947504,0.00027923,2]
[425857791,1782007840000,-5040.87723824,0.00028,7]
[425857776,1782007840000,-150.0,0.00027398,2]
[425857784,1782007840000,-158.0,0.00027558,30]
[425857787,1782007840000,-156.31018524,0.00027874,2]
[425857795,1782007840000,-188.01426256,0.000282,2]
[425857793,1782007840000,-174.92542201,0.000282,2]
[425857783,1782007840000,-155.83,0.00027558,30]
[425857782,1782007840000,-161.46,0.00027558,30]
[425857778,1782007840000,-500.0,0.000275,7]
[425857786,1782007840000,-399.0,0.00027808,2]
[425857944,1782007841000,-500.0,0.00029588,2]
[425857941,1782007841000,-1302.86808882,0.00029588,2]
[425857939,1782007841000,-1302.86808882,0.00029588,2]
[425857935,1782007841000,-1302.86808882,0.00029588,2]
[425857924,1782007841000,-1302.86808883,0.00029588,2]
[425857929,1782007841000,-1302.86808883,0.00029588,2]
[425857973,1782007841000,-500.0,0.00029588,2]
[425857937,1782007841000,-1302.86808882,0.00029588,2]
[425857927,1782007841000,-1302.86808883,0.00029588,2]
[425857925,1782007841000,-1302.86808883,0.00029588,2]
[425857933,1782007841000,-1302.86808883,0.00029588,2]
[425857943,1782007841000,-500.0,0.00029588,2]
[425857958,1782007841000,-504.83209895,0.00029588,2]
[425857946,1782007841000,-510.51402326,0.00029588,2]
[425857950,1782007841000,-500.0,0.00029588,2]
[425857975,1782007841000,-500.0,0.00029588,2]
[425857954,1782007841000,-500.0,0.00029588,2]
[425857963,1782007841000,-500.56566679,0.00029588,2]
[425857977,1782007841000,-500.0,0.00029588,2]
[425857956,1782007841000,-500.0,0.00029588,2]
[425857964,1782007841000,-500.0,0.00029588,2]
[425857966,1782007841000,-312.5628394,0.00029588,2]
[425857961,1782007841000,-525.37012978,0.00029588,2]
[425857968,1782007841000,-500.0,0.00029588,2]
[425857922,1782007841000,-159.73947504,0.00029567,2]
[425857948,1782007841000,-500.0,0.00029588,2]
[425857911,1782007841000,-567.95342946,0.00029489,2]
[425857889,1782007841000,-154.0,0.00029101,5]
[425857916,1782007841000,-644.31,0.00029542,2]
[425857868,1782007841000,-7951.44782263,0.00028864,2]
[425857866,1782007841000,-161.0,0.00028863,30]
[425857870,1782007841000,-1123.45,0.000289,30]
[425857872,1782007841000,-900.0,0.000289,10]
[425857878,1782007841000,-1878.60471103,0.00029,2]
[425857876,1782007841000,-1003.24167396,0.00029,2]
[425857874,1782007841000,-30265.85990873,0.00029,2]
[425857886,1782007841000,-311.16,0.00029067,30]
[425857882,1782007841000,-2626.66770039,0.00029,30]
[425857884,1782007841000,-436643.45888913,0.00029007,2]
[425857887,1782007841000,-1123.45,0.000291,30]
[425857880,1782007841000,-2327.50636559,0.00029,2]
[425857909,1782007841000,-501.0,0.00029465,2]
[425857891,1782007841000,-213.0,0.00029101,5]
[425857897,1782007841000,-170.0,0.0002918,2]
[425857893,1782007841000,-1085.26280404,0.00029156,2]
[425857895,1782007841000,-200.0,0.0002916,2]
[425857899,1782007841000,-3000.0,0.00029293,3]
[425857901,1782007841000,-1123.45,0.000293,30]
[425857907,1782007841000,-182.75,0.00029336,2]
[425857912,1782007841000,-1123.45,0.000295,30]
[425857914,1782007841000,-464.63,0.0002953,2]
[425857920,1782007841000,-396.19,0.00029543,2]
[425857903,1782007841000,-372.8357145,0.000293,2]
[425857905,1782007841000,-500.35893196,0.00029323,2]
[425857918,1782007841000,-573.61,0.00029542,2]
[425857885,1782007841000,-159.73947504,0.00029019,2]
[425857952,1782007841000,-502.76700201,0.00029588,2]
[425857931,1782007841000,-1302.86808883,0.00029588,2]
[425857979,1782007841000,-500.0,0.00029588,2]
[425858062,1782007841000,-500.0,0.00029589,2]
[425858046,1782007841000,-500.0,0.00029589,2]
[425858050,1782007841000,-500.0,0.00029589,2]
[425858043,1782007841000,-500.0,0.00029589,2]
[425858048,1782007841000,-500.0,0.00029589,2]
[425858052,1782007841000,-500.0,0.00029589,2]
[425858066,1782007841000,-354.08178576,0.00029589,2]
[425858064,1782007841000,-323.10532976,0.00029589,2]
[425858069,1782007841000,-500.0,0.00029589,2]
[425858081,1782007841000,-500.0,0.00029589,2]
[425858073,1782007841000,-500.0,0.00029589,2]
[425858083,1782007841000,-44639.43215,0.00029589,2]
[425858058,1782007841000,-500.0,0.00029589,2]
[425858085,1782007841000,-500.0,0.00029589,2]
[425858079,1782007841000,-500.0,0.00029589,2]
[425858089,1782007841000,-500.0,0.00029589,2]
[425858087,1782007841000,-200.78528086,0.00029589,2]
[425858077,1782007841000,-500.0,0.00029589,2]
[425858093,1782007841000,-560.86669086,0.00029589,2]
[425858091,1782007841000,-500.0,0.00029589,2]
[425858095,1782007841000,-500.0,0.00029589,2]
[425858100,1782007841000,-170.260491,0.00029589,2]
[425858102,1782007841000,-161.00287,0.00029589,2]
[425858104,1782007841000,-511.64882356,0.00029589,2]
[425858097,1782007841000,-500.0,0.00029589,2]
[425857970,1782007841000,-500.0,0.00029588,2]
[425858075,1782007841000,-500.0,0.00029589,2]
[425858056,1782007841000,-502.76991245,0.00029589,2]
[425858071,1782007841000,-500.0,0.00029589,2]
[425858054,1782007841000,-504.74860527,0.00029589,2]
[425858060,1782007841000,-500.0,0.00029589,2]
[425857990,1782007841000,-500.0,0.00029588,2]
[425857983,1782007841000,-153.10249019,0.00029588,2]
[425857985,1782007841000,-223.6128824,0.00029588,2]
[425857996,1782007841000,-500.0,0.00029588,2]
[425857994,1782007841000,-3000.0,0.00029588,3]
[425857988,1782007841000,-510.48437099,0.00029588,2]
[425857992,1782007841000,-500.0,0.00029588,2]
[425857998,1782007841000,-500.0,0.00029588,2]
[425858000,1782007841000,-500.0,0.00029588,2]
[425858002,1782007841000,-500.0,0.00029588,2]
[425858006,1782007841000,-500.0,0.00029589,2]
[425858004,1782007841000,-215.60075994,0.00029589,2]
[425857981,1782007841000,-500.0,0.00029588,2]
[425858014,1782007841000,-508.01602593,0.00029589,2]
[425858008,1782007841000,-500.0,0.00029589,2]
[425858041,1782007841000,-500.0,0.00029589,2]
[425858039,1782007841000,-500.0,0.00029589,2]
[425858031,1782007841000,-500.0,0.00029589,2]
[425858037,1782007841000,-500.0,0.00029589,2]
[425858025,1782007841000,-500.0,0.00029589,2]
[425858044,1782007841000,-500.0,0.00029589,2]
[425858033,1782007841000,-500.0,0.00029589,2]
[425858016,1782007841000,-300.0,0.00029589,2]
[425858010,1782007841000,-509.57155737,0.00029589,2]
[425858012,1782007841000,-500.0,0.00029589,2]
[425858035,1782007841000,-506.33693205,0.00029589,2]
[425858184,1782007842000,-1063.35,0.00029589,2]
[425858182,1782007842000,-500.0,0.00029589,2]
[425858177,1782007842000,-500.0,0.00029589,2]
[425858171,1782007842000,-500.0,0.00029589,2]
[425858173,1782007842000,-500.0,0.00029589,2]
[425858179,1782007842000,-500.0,0.00029589,2]
[425858175,1782007842000,-500.0,0.00029589,2]
[425858169,1782007842000,-500.0,0.00029589,2]
[425858163,1782007842000,-500.0,0.00029589,2]
[425858167,1782007842000,-500.0,0.00029589,2]
[425858186,1782007842000,-500.0,0.00029589,2]
[425858181,1782007842000,-424.29511908,0.00029589,2]
[425858188,1782007842000,-500.0,0.00029589,2]
[425858198,1782007842000,-500.0,0.00029589,2]
[425858196,1782007842000,-500.0,0.00029589,2]
[425858190,1782007842000,-500.0,0.00029589,2]
[425858194,1782007842000,-500.0,0.00029589,2]
[425858200,1782007842000,-500.0,0.00029589,2]
[425858202,1782007842000,-500.0,0.00029589,2]
[425858208,1782007842000,-500.0,0.00029589,2]
[425858210,1782007842000,-500.0,0.00029589,2]
[425858205,1782007842000,-500.0,0.00029589,2]
[425858206,1782007842000,-500.0,0.00029589,2]
[425858215,1782007842000,-500.0,0.00029589,2]
[425858222,1782007842000,-666.71,0.00029589,2]
[425858165,1782007842000,-500.0,0.00029589,2]
[425858192,1782007842000,-500.0,0.00029589,2]
[425858159,1782007842000,-500.0,0.00029589,2]
[425858115,1782007842000,-576.35058361,0.00029589,2]
[425858155,1782007842000,-500.0,0.00029589,2]
[425858213,1782007842000,-500.0,0.00029589,2]
[425858107,1782007842000,-500.0,0.00029589,2]
[425858109,1782007842000,-500.0,0.00029589,2]
[425858111,1782007842000,-500.0,0.00029589,2]
[425858118,1782007842000,-500.0,0.00029589,2]
[425858113,1782007842000,-500.0,0.00029589,2]
[425858120,1782007842000,-500.0,0.00029589,2]
[425858122,1782007842000,-500.0,0.00029589,2]
[425858125,1782007842000,-500.0,0.00029589,2]
[425858127,1782007842000,-500.0,0.00029589,2]
[425858130,1782007842000,-500.0,0.00029589,2]
[425858128,1782007842000,-500.0,0.00029589,2]
[425858131,1782007842000,-500.0,0.00029589,2]
[425858135,1782007842000,-500.0,0.00029589,2]
[425858132,1782007842000,-500.0,0.00029589,2]
[425858133,1782007842000,-500.0,0.00029589,2]
[425858137,1782007842000,-500.0,0.00029589,2]
[425858139,1782007842000,-500.0,0.00029589,2]
[425858142,1782007842000,-500.0,0.00029589,2]
[425858144,1782007842000,-500.0,0.00029589,2]